bitfinex-derivatives/quotes_SOLF0:USTF0_20250227
["timestamp","ask_amount","ask_price","bid_price","bid_amount"]
[1740687931020,0.05336771,136.83,136.75,12.38]
[1740687931421,0.05336771,136.83,136.76,7.3212]
[1740687931625,0.05336771,136.83,136.75,12.38]
[1740687932023,7.319,136.81,136.75,12.38]
[1740687932419,0.04869419,136.79,136.75,12.38]
[1740687932617,0.04869419,136.79,136.72,12.36]
[1740687932921,0.04869419,136.79,136.71,2.2196]
[1740687933120,7.3215,136.76,136.71,2.2196]
[1740687933322,227.6133,136.85,136.68,77.28354434]
[1740687933523,0.05295076,136.75,136.68,77.28354434]
[1740687933722,2.0958,136.78,136.68,77.28354434]
[1740687934126,7.37884429,136.74,136.68,77.28354434]
[1740687934323,7.37884429,136.74,136.7,77.28354434]
[1740687934324,0.05624429,136.74,136.7,77.28354434]
[1740687934524,4.42435671,136.77,136.7,77.28354434]
[1740687935022,195.42435671,136.77,136.7,77.28354434]
[1740687935417,7.3241,136.71,136.7,77.28354434]
[1740687935821,7.3241,136.71,136.7,66.98694434]
[1740687936128,0.05323818,136.72,136.7,66.98694434]
[1740687936324,0.05323818,136.72,136.69,0.05239292]
[1740687936524,195.42435671,136.77,136.62,2.1555]
[1740687936825,0.05428767,136.72,136.69,0.04677728]
[1740687937727,7.3246,136.7,136.69,0.04677728]
[1740687940030,0.05428767,136.72,136.69,0.04677728]
[1740687941130,0.05428767,136.72,136.62,9.4842]
[1740687941330,4.42435671,136.77,136.62,2.1555]
[1740687941726,26.40435671,136.77,136.61,2.0733]
[1740687941920,21.98,136.75,136.61,2.0733]
[1740687942122,14.644,136.75,136.61,2.0733]
[1740687942321,0.05591635,136.69,136.61,2.0733]
[1740687942729,0.05591635,136.69,136.61,9.4022]
[1740687943025,0.05591635,136.69,136.61,2.0733]
[1740687944233,7.3271,136.66,136.61,2.0733]
[1740687944629,0.05542773,136.65,136.61,2.0733]
[1740687945130,0.05542773,136.65,136.62,4.2659]
[1740687945627,0.05542773,136.65,136.62,2.1682]
[1740687946624,0.05542773,136.65,136.61,2.0733]
[1740687946824,0.05542773,136.65,136.57,12.32]
[1740687947024,191.0,136.73,136.57,12.32]
[1740687947226,0.05486971,136.62,136.57,12.32]
[1740687947430,7.3287,136.63,136.57,19.6513]
[1740687947735,0.04644016,136.61,136.57,7.3313]
[1740687948032,0.04644016,136.61,136.56,7.3319]
[1740687948233,0.04644016,136.61,136.55,4.4952]
[1740687948835,7.37604016,136.61,136.55,11.8276]
[1740687950337,7.33,136.6,136.55,4.4952]
[1740687950532,0.04644016,136.61,136.55,2.2455]
[1740687950727,0.04644016,136.61,136.45,199.1]
[1740687950728,0.04644016,136.61,136.49,2.2919]
[1740687950929,7.3316,136.57,136.49,19.0017]
[1740687951131,1.8791,136.64,136.49,19.0017]
[1740687951330,0.04700385,136.54,136.49,19.0017]
[1740687951535,1.8791,136.64,136.53,7.3337]
[1740687952034,7.37882916,136.6,136.53,7.3337]
[1740687952535,0.04852916,136.6,136.49,19.0017]
[1740687952736,1.8791,136.64,136.52,7.3339]
[1740687952937,0.05426298,136.56,136.49,19.0017]
[1740687953431,0.05426298,136.56,136.53,7.3333]
[1740687953636,0.05426298,136.56,136.49,19.0017]
[1740687954832,0.05426298,136.56,136.49,6.7017]
[1740687955037,0.05426298,136.56,136.5,7.3353]
[1740687955237,7.38666298,136.56,136.5,7.3353]
[1740687955934,0.05426298,136.56,136.51,7.3347]
[1740687956135,0.05426298,136.56,136.49,6.7017]
[1740687956537,0.05426298,136.56,136.55,7.3326]
[1740687956837,0.05426298,136.56,136.49,6.7017]
[1740687957036,0.05426298,136.56,136.54,7.3332]
[1740687957235,1.8791,136.64,136.49,6.7017]
[1740687957539,1.8922,136.69,136.5,12.28]
[1740687957738,1.8814,136.67,136.56,7.3318]
[1740687958137,1.8814,136.67,136.5,12.28]
[1740687958339,7.3277,136.65,136.58,7.3309]
[1740687958536,1.8814,136.67,136.57,0.05519968]
[1740687958537,0.0465413,136.6,136.57,0.05519968]
[1740687958840,7.3303,136.6,136.5,12.28]
[1740687959042,7.38325019,136.6,136.57,0.04617007]
[1740687959335,7.37754361,136.6,136.57,0.05490425]
[1740687959540,0.04724361,136.6,136.57,0.05490425]
[1740687960441,0.04724361,136.6,136.57,7.38640425]
[1740687960740,0.04724361,136.6,136.57,0.05490425]
[1740687961144,7.3305,136.59,136.57,0.05490425]
[1740687961345,0.04724361,136.6,136.57,0.05490425]
[1740687964143,0.04724361,136.6,136.59,7.3305]
[1740687964355,390.1,136.68,136.58,6.5441]
[1740687964642,1.8839,136.72,136.58,6.5441]
[1740687965548,0.05414841,136.66,136.64,0.04888656]
[1740687965749,1.8965,136.75,136.64,0.04888656]
[1740687966049,1.8965,136.75,136.58,6.5441]
[1740687966350,7.3253,136.69,136.58,6.5441]
[1740687966853,23.8765,136.75,136.58,6.5441]
[1740687966854,0.05375094,136.65,136.62,0.04972307]
[1740687967147,1.3376,136.74,136.58,6.5441]
[1740687967350,0.05604462,136.65,136.62,0.04616614]
[1740687967547,1.3376,136.74,136.58,6.5441]
[1740687967851,0.05034456,136.65,136.62,0.04836923]
[1740687968048,1.3376,136.74,136.58,6.5441]
[1740687968350,0.04755687,136.65,136.62,0.05619617]
[1740687968546,1.3376,136.74,136.58,6.5441]
[1740687968953,0.05066614,136.63,136.62,7.37770412]
[1740687969152,1.3376,136.74,136.62,0.04900412]
[1740687969341,1.3376,136.74,136.58,6.5441]
[1740687969342,0.0509947,136.64,136.58,6.5441]
[1740687969546,7.3255,136.69,136.67,0.04866541]
[1740687969742,1.3376,136.74,136.58,6.5441]
[1740687970155,1.8965,136.75,136.58,6.5441]
[1740687970347,202.54631591,136.76,136.58,6.5441]
[1740687970747,0.05107098,136.68,136.66,0.04756907]
[1740687971051,202.54631591,136.76,136.62,12.24]
[1740687971353,0.05254973,136.68,136.66,0.049022]
[1740687971650,202.54631591,136.76,136.62,12.24]
[1740687971847,0.04608867,136.68,136.66,0.05469869]
[1740687972050,202.54631591,136.76,136.62,12.24]
[1740687972353,7.3740834,136.68,136.66,0.05253054]
[1740687972548,224.52631591,136.76,136.6,12.24]
[1740687972747,7.323,136.73,136.66,0.05616576]
[1740687973051,191.0,136.75,136.6,12.24]
[1740687973241,0.05081398,136.71,136.68,0.04811735]
[1740687974446,7.3249,136.7,136.68,0.04811735]
[1740687974850,0.05081398,136.71,136.68,0.04811735]
[1740687975050,7.3246,136.7,136.68,0.04811735]
[1740687975252,0.05081398,136.71,136.68,0.04811735]
[1740687976255,7.3251,136.69,136.68,0.04811735]
[1740687976852,7.3251,136.69,136.58,6.5441]
[1740687976853,21.94,136.69,136.58,6.5441]
[1740687977048,194.3609,136.7,136.58,6.5441]
[1740687977246,7.3278,136.65,136.59,7.3302]
[1740687977842,0.05554051,136.63,136.61,0.05182844]
[1740687979359,7.38414051,136.63,136.61,0.05182844]
[1740687981355,0.05554051,136.63,136.61,0.05182844]
[1740687983155,7.38424051,136.63,136.61,0.05182844]
[1740687983357,0.05554051,136.63,136.61,0.05182844]
[1740687983559,7.3289,136.62,136.61,0.05182844]
[1740687985552,43.94,136.62,136.49,4.5396]
[1740687985758,21.98,136.62,136.5,2.3029]
[1740687986148,7.3335,136.54,136.5,2.3029]
[1740687986352,3.3632,136.61,136.5,2.3029]
[1740687986854,0.04800028,136.57,136.54,0.04992867]
[1740687987156,192.3996,136.64,136.5,2.3029]
[1740687987457,0.04743665,136.57,136.54,0.04866575]
[1740687987651,7.3326,136.55,136.5,2.3029]
[1740687987857,0.05081976,136.55,136.54,0.05355148]
[1740687988154,0.05081976,136.55,136.5,2.3029]
[1740687988357,7.3333,136.54,136.53,0.04680107]
[1740687990353,7.38361976,136.55,136.53,0.04680107]
[1740687991257,7.3332,136.54,136.53,0.04680107]
[1740687992362,7.3348,136.52,136.45,7.3377]
[1740687993256,1.9665,136.58,136.42,6.383]
[1740687993463,0.04806384,136.5,136.47,0.04803924]
[1740687993759,192.4025,136.55,136.42,6.383]
[1740687994058,0.05338512,136.5,136.47,0.05459091]
[1740687994455,0.05338512,136.5,136.38,39.75779664]
[1740687994657,212.98,136.51,136.38,41.86259664]
[1740687994856,7.3392,136.43,136.38,49.20429664]
[1740687995555,0.05098945,136.42,136.38,49.20429664]
[1740687996060,0.05098945,136.42,136.39,7.3412]
[1740687996861,0.05098945,136.42,136.38,41.86259664]
[1740687997159,0.05098945,136.42,136.39,7.3412]
[1740687997361,0.05098945,136.42,136.38,41.86259664]
[1740687997558,0.05098945,136.42,136.41,7.3402]
[1740687997758,0.05098945,136.42,136.38,41.86259664]
[1740687998157,0.05098945,136.42,136.39,7.3411]
[1740687998358,0.05098945,136.42,136.38,2.1048]
[1740687998554,0.05098945,136.42,136.39,7.3409]
[1740687998856,0.05098945,136.42,136.38,2.1048]
[1740687999053,191.0,136.49,136.38,2.1048]
[1740687999248,397.93353811,136.54,136.39,0.04821132]
[1740687999453,390.28,136.54,136.4,12.2]
[1740688000356,0.0509022,136.48,136.46,0.0463757]
[1740688000563,1.9675,136.56,136.46,0.0463757]
[1740688000959,1.9675,136.56,136.4,12.2]
[1740688001163,59.0810804,136.57,136.4,12.2]
[1740688001360,2.0176,136.61,136.41,1.31054004]
[1740688001763,0.05245486,136.52,136.5,0.05475835]
[1740688001958,7.3307,136.59,136.49,12.2]
[1740688002155,191.0,136.65,136.49,12.2]
[1740688002459,191.0,136.64,136.49,12.2]
[1740688003162,0.056012,136.58,136.55,0.04783403]
[1740688003662,0.05270514,136.58,136.55,0.04750953]
[1740688004863,5.1692,136.67,136.55,0.04750953]
[1740688005161,12.4958,136.67,136.56,7.3316]
[1740688005357,3.7144,136.67,136.51,1.30735231]
[1740688005663,7.3273,136.65,136.55,7.3325]
[1740688006162,0.05576192,136.61,136.59,0.05030824]
[1740688006357,199.36,136.68,136.52,14.3546]
[1740688006556,199.36,136.68,136.59,0.04814149]
[1740688006557,0.05301718,136.61,136.59,0.04814149]
[1740688006757,7.3292,136.62,136.53,7.3334]
[1740688006957,0.046345,136.61,136.59,0.04922111]
[1740688007261,0.046345,136.61,136.59,0.04707616]
[1740688007864,7.33,136.6,136.59,0.04707616]
[1740688008062,0.046345,136.61,136.52,14.3546]
[1740688008359,7.3301,136.6,136.52,14.3546]
[1740688008565,21.98,136.63,136.52,21.6885]
[1740688009264,7.37819018,136.59,136.56,0.04698929]
[1740688009464,0.04759018,136.59,136.56,0.04698929]
[1740688012165,199.36,136.68,136.56,0.04698929]
[1740688012366,199.36,136.68,136.52,14.3546]
[1740688012560,194.7669,136.7,136.52,14.3546]
[1740688012757,193.0176,136.7,136.53,1.30690892]
[1740688012965,1.7447,136.74,136.53,1.30690892]
[1740688013162,7.3253,136.69,136.62,7.3286]
[1740688013366,0.04675868,136.65,136.63,2.1293]
[1740688015766,0.04675868,136.65,136.62,0.05592342]
[1740688016869,7.3278,136.64,136.62,0.05592342]
[1740688017176,0.04675868,136.65,136.62,0.05592342]
[1740688017465,7.3284,136.63,136.62,0.05592342]
[1740688017672,0.04675868,136.65,136.56,2.2022]
[1740688017865,212.98,136.68,136.56,2.2022]
[1740688018066,7.3306,136.59,136.56,2.2022]
[1740688018267,3.5611,136.67,136.55,2.1293]
[1740688018467,7.3313,136.58,136.53,7.3336]
[1740688018862,7.3313,136.58,136.54,0.04747822]
[1740688019067,0.05172695,136.57,136.55,7.3323]
[1740688019371,212.98,136.66,136.51,12.2]
[1740688019570,0.04639606,136.57,136.55,0.05598516]
[1740688019865,7.3309,136.59,136.51,12.2]
[1740688020071,191.0,136.66,136.55,0.04818654]
[1740688020267,0.0557369,136.56,136.52,7.334]
[1740688020467,212.98,136.66,136.5,12.2]
[1740688020664,0.05423091,136.55,136.53,0.04903891]
[1740688020867,191.0,136.65,136.5,12.2]
[1740688021872,191.0,136.65,136.49,2.2022]
[1740688022073,0.05150566,136.59,136.56,0.05533593]
[1740688022271,212.98,136.65,136.49,2.2022]
[1740688022473,7.3319,136.57,136.56,0.05325891]
[1740688022767,7.3319,136.57,136.49,9.5375]
[1740688022975,7.3322,136.56,136.49,9.5375]
[1740688023165,0.04707547,136.54,136.52,0.05609392]
[1740688025477,7.3337,136.53,136.52,0.05609392]
[1740688026877,0.04707547,136.54,136.52,0.05609392]
[1740688028179,191.0,136.63,136.52,0.05609392]
[1740688028380,191.0,136.63,136.49,2.2022]
[1740688029173,0.04938695,136.57,136.55,0.05604252]
[1740688029371,1.6881,136.64,136.49,2.2022]
[1740688029578,7.3299,136.61,136.55,7.3326]
[1740688029777,0.0471463,136.57,136.55,7.38316495]
[1740688029971,0.0471463,136.57,136.55,0.05056495]
[1740688031181,7.3292,136.62,136.56,7.3321]
[1740688031377,3.5611,136.67,136.57,2.2949]
[1740688031578,7.3305,136.59,136.53,19.5335]
[1740688031785,3.5611,136.67,136.53,12.2]
[1740688031980,25.5711,136.67,136.53,12.2]
[1740688032286,0.04955259,136.61,136.59,0.05411989]
[1740688032579,7.3298,136.61,136.59,0.05411989]
[1740688032784,0.04745042,136.61,136.59,0.05411989]
[1740688036686,10.09636716,136.74,136.6,12.2]
[1740688037189,7.3239,136.72,136.6,12.2]
[1740688037588,0.05419626,136.67,136.65,7.38112118]
[1740688037885,10.09636716,136.73,136.65,0.05422118]
[1740688038085,0.05572861,136.67,136.65,0.05422118]
[1740688038286,7.3249,136.7,136.65,0.05422118]
[1740688038589,0.05315154,136.67,136.65,0.05422118]
[1740688041992,7.3267,136.66,136.65,0.05422118]
[1740688042198,0.05315154,136.67,136.65,0.05422118]
[1740688045693,7.37935154,136.67,136.65,0.05422118]
[1740688045994,0.05315154,136.67,136.65,0.05422118]
[1740688050697,0.05315154,136.67,136.66,7.3267]
[1740688051191,5.154e-05,136.67,136.66,7.3267]
[1740688051396,5.154e-05,136.67,136.66,29.2867]
[1740688051592,5.154e-05,136.67,136.66,36.5185]
[1740688052402,5.154e-05,136.67,136.66,14.5585]
[1740688053003,5.154e-05,136.67,136.66,36.5185]
[1740688053296,11.01628001,136.79,136.66,29.1918]
[1740688053496,11.01628001,136.79,136.66,7.2318]
[1740688053694,10.09636716,136.79,136.72,7.3232]
[1740688053897,2.3535,136.82,136.71,12.18]
[1740688054097,10.09636716,136.84,136.71,12.18]
[1740688054291,0.05565984,136.78,136.77,7.3208]
[1740688054499,10.09636716,136.84,136.77,7.3208]
[1740688054701,10.09636716,136.84,136.71,231.22]
[1740688054997,10.09636716,136.84,136.74,7.322]
[1740688055203,10.09636716,136.84,136.71,231.22]
[1740688055390,10.09636716,136.84,136.72,1.30231899]
[1740688055594,0.05106927,136.79,136.76,0.04947413]
[1740688056198,10.09636716,136.84,136.76,0.04947413]
[1740688056896,6.36196716,136.84,136.76,0.04947413]
[1740688057301,0.04765983,136.81,136.76,0.04947413]
[1740688057599,29.91430304,136.97,136.76,21.94]
[1740688057799,51.92430304,136.97,136.71,231.22]
[1740688058001,51.92430304,136.97,136.72,1.29938349]
[1740688058196,29.91430304,136.97,136.72,1.29938349]
[1740688058395,7.3159,136.87,136.77,7.3208]
[1740688058591,0.04975525,136.84,136.81,0.04681362]
[1740688058791,29.91430304,136.97,136.78,12.18]
[1740688058999,0.04945066,136.84,136.81,0.04841627]
[1740688059195,7.63143948,136.96,136.78,12.18]
[1740688059391,0.04930369,136.84,136.81,0.05516384]
[1740688059596,7.63143948,136.96,136.81,0.04835194]
[1740688059903,7.3161,136.86,136.78,12.18]
[1740688060297,7.3161,136.86,136.81,0.05252532]
[1740688060503,0.04659948,136.83,136.81,0.05252532]
[1740688061295,0.04659948,136.83,136.68,12.18]
[1740688061497,7.3212,136.77,136.68,12.18]
[1740688061702,191.0,136.89,136.68,12.18]
[1740688062001,192.34513906,136.88,136.68,12.18]
[1740688062205,1.34513906,136.87,136.68,12.18]
[1740688062504,0.05072606,136.79,136.77,0.05072482]
[1740688062906,191.0,136.88,136.72,7.3232]
[1740688063100,0.04663453,136.79,136.77,0.05081396]
[1740688063303,191.0,136.87,136.68,12.18]
[1740688063304,26.7869,136.85,136.68,12.18]
[1740688063498,26.7869,136.85,136.77,0.05025049]
[1740688063701,0.04770178,136.79,136.77,0.05025049]
[1740688063908,213.01,136.84,136.77,0.05025049]
[1740688064112,7.3203,136.78,136.77,0.05025049]
[1740688064303,191.0,136.84,136.77,0.05025049]
[1740688064810,0.0490954,136.82,136.77,0.05025049]
[1740688065204,0.0490954,136.82,136.69,2.4018]
[1740688065406,225.19,136.84,136.69,2.4018]
[1740688065606,225.19,136.84,136.71,7.3237]
[1740688065908,225.19,136.84,136.69,2.4018]
[1740688066106,7.3213,136.77,136.72,7.3232]
[1740688066402,0.04777287,136.76,136.73,0.05119457]
[1740688066607,7.36947287,136.76,136.73,0.05119457]
[1740688066803,0.04777287,136.76,136.73,0.05119457]
[1740688067209,0.04777287,136.76,136.67,7.3261]
[1740688067610,22.01,136.8,136.64,2.367]
[1740688067808,22.01,136.78,136.64,2.367]
[1740688068015,195.6019,136.77,136.64,2.367]
[1740688068321,7.3244,136.71,136.61,12.18]
[1740688068519,195.6019,136.77,136.69,0.05293724]
[1740688068520,0.04809086,136.72,136.69,0.05293724]
[1740688068720,207.7819,136.77,136.61,14.6788]
[1740688069020,7.3244,136.71,136.69,0.05597077]
[1740688070114,0.05086012,136.72,136.69,0.05597077]
[1740688070322,7.3246,136.7,136.61,14.6788]
[1740688070618,7.3246,136.7,136.61,17.1364]
[1740688070819,7.3246,136.7,136.62,7.3287]
[1740688071517,0.05193553,136.67,136.65,0.05371601]
[1740688072424,0.05193553,136.67,136.6,2.3961]
[1740688073728,0.05193553,136.67,136.62,0.05290082]
[1740688077123,7.3275,136.65,136.62,0.05290082]
[1740688077326,0.05193553,136.67,136.62,0.05290082]
[1740688079324,0.05193553,136.67,136.66,7.3267]
[1740688079524,0.05193553,136.67,136.63,7.1254]
[1740688079822,0.05193553,136.67,136.65,0.05451411]
[1740688080826,2.4015,136.76,136.65,22.01451411]
[1740688081026,2.4015,136.76,136.63,7.1254]
[1740688081227,9.7231,136.76,136.67,7.3259]
[1740688081731,2.4015,136.76,136.63,7.1254]
[1740688082029,0.04680456,136.73,136.7,0.05395964]
[1740688083231,0.04680456,136.73,136.7,7.37825964]
[1740688084128,0.04680456,136.73,136.7,0.05395964]
[1740688086134,7.3241,136.71,136.7,0.05395964]
[1740688086334,0.04680456,136.73,136.7,0.05395964]
[1740688086530,7.3235,136.72,136.7,0.05395964]
[1740688086738,0.04680456,136.73,136.7,0.05395964]
[1740688088430,0.04680456,136.73,136.7,7.37835964]
[1740688088632,0.04680456,136.73,136.7,0.05395964]
[1740688090333,0.04680456,136.73,136.63,4.6943]
[1740688090528,22.01,136.77,136.57,14.685]
[1740688090732,22.01,136.75,136.57,19.5786]
[1740688091134,214.35649147,136.74,136.57,19.5786]
[1740688091435,0.05092786,136.67,136.64,0.05101506]
[1740688091835,38.9294,136.73,136.58,2.3849]
[1740688092033,38.9294,136.73,136.64,0.04856985]
[1740688092034,0.04919036,136.67,136.64,0.04856985]
[1740688092429,213.01,136.72,136.58,2.3849]
[1740688092629,0.05137935,136.67,136.64,0.05127932]
[1740688092836,213.01,136.71,136.58,2.3849]
[1740688092837,0.04922359,136.66,136.61,7.3293]
[1740688093036,0.04922359,136.66,136.58,2.3849]
[1740688093232,0.04922359,136.66,136.64,0.05621683]
[1740688093438,0.04922359,136.66,136.58,2.3849]
[1740688093629,0.04922359,136.66,136.64,0.05328232]
[1740688093831,0.04922359,136.66,136.58,2.3849]
[1740688094031,0.04922359,136.66,136.64,0.04775377]
[1740688094340,0.04922359,136.66,136.64,0.05431038]
[1740688094836,7.37632359,136.66,136.64,0.05431038]
[1740688095035,0.04922359,136.66,136.64,0.05431038]
[1740688095642,0.04922359,136.66,136.58,2.3849]
[1740688096140,7.37632359,136.66,136.58,9.7155]
[1740688096345,0.04922359,136.66,136.58,9.7155]
[1740688096640,0.04922359,136.66,136.58,2.3849]
[1740688096842,0.04922359,136.66,136.61,0.05274321]
[1740688097334,0.04922359,136.66,136.54,2.4747]
[1740688097734,7.3292,136.62,136.54,2.4747]
[1740688098236,7.64499121,136.68,136.54,2.4747]
[1740688098439,7.3295,136.61,136.54,2.4747]
[1740688098641,7.3295,136.61,136.6,0.04816928]
[1740688098840,7.3295,136.61,136.54,2.4747]
[1740688099041,0.05625875,136.62,136.59,0.05362086]
[1740688099339,7.38305609,136.62,136.59,0.05104836]
[1740688099538,0.05405609,136.62,136.59,0.05104836]
[1740688102044,7.33,136.6,136.59,0.05104836]
[1740688107646,0.05405609,136.62,136.59,0.05104836]
[1740688107846,7.3296,136.61,136.59,0.05104836]
[1740688109354,7.33,136.6,136.59,0.05104836]
[1740688110149,7.38315609,136.62,136.59,0.05104836]
[1740688110347,0.05405609,136.62,136.59,0.05104836]
[1740688110846,7.38335609,136.62,136.59,0.05104836]
[1740688111153,0.05405609,136.62,136.59,0.05104836]
[1740688111443,7.3281,136.64,136.59,0.05104836]
[1740688111648,2.3163,136.7,136.59,0.05104836]
[1740688111853,7.3268,136.66,136.59,2.5088]
[1740688112044,2.3163,136.7,136.59,2.5088]
[1740688112241,4.8493,136.7,136.59,2.5088]
[1740688112641,0.0464595,136.66,136.63,0.05440017]
[1740688112844,7.3276,136.65,136.63,0.05440017]
[1740688113042,0.0464595,136.66,136.63,0.05440017]
[1740688113450,7.3277,136.65,136.63,0.05440017]
[1740688113849,0.0464595,136.66,136.63,0.05440017]
[1740688114054,7.3734595,136.66,136.63,0.05440017]
[1740688114654,7.3273,136.65,136.63,0.05440017]
[1740688115846,0.0464595,136.66,136.63,0.05440017]
[1740688117445,7.3278,136.64,136.63,0.05440017]
[1740688118953,0.0464595,136.66,136.55,2.5382]
[1740688119260,2.3275,136.65,136.55,2.5382]
[1740688119655,7.3316,136.57,136.55,2.5382]
[1740688119859,2.3275,136.65,136.54,2.4747]
[1740688120352,7.3305,136.59,136.58,0.04638238]
[1740688125065,7.3305,136.59,136.58,8.238e-05]
[1740688125751,51.3005,136.59,136.58,8.238e-05]
[1740688126252,53.6412,136.59,136.58,8.238e-05]
[1740688128965,244.6412,136.59,136.58,8.238e-05]
[1740688129161,222.6312,136.59,136.58,8.238e-05]
[1740688130255,200.6712,136.59,136.58,8.238e-05]
[1740688130859,222.6312,136.59,136.58,8.238e-05]
[1740688132066,53.6412,136.59,136.58,8.238e-05]
[1740688132568,55.10543603,136.59,136.58,8.238e-05]
[1740688133066,55.10543603,136.59,136.46,2.4567]
[1740688133265,33.14543603,136.59,136.46,2.4567]
[1740688133467,22.01,136.57,136.46,2.4567]
[1740688133667,12.2,136.56,136.46,2.4567]
[1740688133963,22.01,136.55,136.4,39.75779664]
[1740688134269,7.3369,136.47,136.46,7.26e-05]
[1740688134760,21.8451,136.53,136.41,4.7607]
[1740688135161,4.8403,136.53,136.41,4.7607]
[1740688135360,0.05607522,136.48,136.46,0.04902944]
[1740688135561,12.2,136.55,136.46,0.04902944]
[1740688135860,7.3345,136.52,136.42,12.2]
[1740688136058,12.2,136.55,136.42,12.2]
[1740688136670,0.04886489,136.5,136.47,0.05496064]
[1740688137170,210.2684,136.58,136.47,0.05496064]
[1740688137371,7.3344,136.52,136.47,7.3366]
[1740688137669,7.3344,136.52,136.48,2.5315]
[1740688138366,7.39034712,136.51,136.49,0.05244228]
[1740688138769,7.3354,136.5,136.48,2.5315]
[1740688139067,7.3354,136.5,136.49,0.05014149]
[1740688139866,0.05518331,136.51,136.49,0.05014149]
[1740688142260,0.05518331,136.51,136.49,2.38864149]
[1740688142969,2.2988,136.58,136.5,2.4315]
[1740688143368,7.3341,136.53,136.5,2.4315]
[1740688143571,2.2988,136.58,136.5,2.4315]
[1740688143765,2.2988,136.58,136.49,2.3385]
[1740688143966,7.3336,136.54,136.53,0.05158159]
[1740688148879,7.3336,136.54,136.53,8.159e-05]
[1740688150071,0.04909026,136.55,136.53,8.159e-05]
[1740688151378,7.38209026,136.55,136.53,8.159e-05]
[1740688151676,0.04909026,136.55,136.53,8.159e-05]
[1740688152977,2.3052,136.62,136.53,8.159e-05]
[1740688153170,7.332,136.57,136.5,2.3627]
[1740688153375,7.332,136.57,136.51,7.3346]
[1740688153674,7.3302,136.6,136.5,2.3627]
[1740688153880,2.419,136.65,136.5,2.3627]
[1740688154180,0.04990059,136.59,136.56,0.04671248]
[1740688154379,7.3281,136.64,136.5,2.3627]
[1740688154678,40.01678334,136.66,136.5,2.3627]
[1740688154879,40.01678334,136.66,136.51,1.31134793]
[1740688155373,36.19688334,136.66,136.52,14.6684]
[1740688155680,9.147e-05,136.6,136.57,0.0468474]
[1740688155880,9.147e-05,136.6,136.58,12.2]
[1740688156075,17.4290803,136.67,136.59,2.4923]
[1740688156678,10.1024803,136.67,136.59,9.8223]
[1740688156879,0.05282469,136.64,136.62,0.04927366]
[1740688159178,7.3284,136.63,136.62,0.04927366]
[1740688159778,7.3284,136.63,136.54,2.3827]
[1740688159779,7.3317,136.57,136.54,2.3827]
[1740688159980,26.8054,136.62,136.54,2.3827]
[1740688160178,7.333,136.55,136.52,2.3453]
[1740688160378,26.8054,136.62,136.52,2.3453]
[1740688160580,4.7954,136.62,136.52,2.3453]
[1740688160880,0.05226131,136.58,136.56,0.05526174]
[1740688162491,193.3986,136.66,136.56,0.05526174]
[1740688162787,193.3986,136.66,136.52,2.3453]
[1740688162990,2.3986,136.66,136.52,2.3453]
[1740688163189,7.3276,136.65,136.52,2.3453]
[1740688163389,2.3968,136.67,136.52,2.3453]
[1740688163691,0.0487337,136.6,136.57,0.04833663]
[1740688163880,2.3968,136.67,136.56,2.4376]
[1740688164084,0.04871486,136.6,136.57,0.05512346]
[1740688164392,2.3968,136.67,136.57,2.4643]
[1740688164592,0.04736274,136.6,136.57,2.4643]
[1740688164793,2.3968,136.67,136.61,0.04967362]
[1740688165092,0.05612037,136.65,136.57,2.4643]
[1740688165288,7.3278,136.64,136.63,0.04916559]
[1740688165494,0.05612037,136.65,136.62,0.04719778]
[1740688165789,2.5095,136.66,136.57,2.4643]
[1740688165990,0.05260083,136.65,136.62,0.05161208]
[1740688166386,7.3282,136.64,136.62,0.05161208]
[1740688166593,0.05260083,136.65,136.62,0.05161208]
[1740688166988,7.3284,136.63,136.62,0.05161208]
[1740688167788,7.3279,136.64,136.62,0.05161208]
[1740688167993,0.05260083,136.65,136.62,0.05161208]
[1740688169896,7.3284,136.63,136.62,0.05161208]
[1740688170891,7.3284,136.63,136.62,1.208e-05]
[1740688171087,29.3384,136.63,136.62,1.208e-05]
[1740688172392,51.2984,136.63,136.62,1.208e-05]
[1740688172893,52.64599626,136.63,136.62,1.208e-05]
[1740688173099,60.29378763,136.63,136.62,1.208e-05]